bitfinex/quotes_ETHUSD_20240910
["timestamp","ask_amount","ask_price","bid_price","bid_amount"]
[1725963338381,4.27727931,2344.3,2343.9,0.005]
[1725963338382,5.16241157,2344.3,2343.9,0.005]
[1725963338889,0.88513226,2344.2,2343.9,0.005]
[1725963339481,5.16241157,2344.3,2343.9,0.005]
[1725963339686,0.88513226,2344.2,2343.9,0.005]
[1725963340245,3.88513226,2344.3,2343.9,0.005]
[1725963340676,0.88513226,2344.2,2343.9,0.005]
[1725963343369,1.91172864,2344.2,2343.9,0.005]
[1725963343549,0.88513226,2344.1,2343.9,0.005]
[1725963346859,0.88513226,2344.2,2343.9,0.005]
[1725963347697,0.88513226,2344.1,2343.9,0.005]
[1725963348320,0.88513226,2344.2,2343.9,0.005]
[1725963348798,0.88513226,2344.5,2343.9,0.09031131]
[1725963348951,0.88513226,2344.6,2343.9,0.09031131]
[1725963349150,0.88513226,2344.6,2344.0,0.55]
[1725963349360,0.88513226,2344.4,2344.0,0.55]
[1725963349658,0.88513226,2344.3,2344.0,0.55]
[1725963350591,0.88513226,2344.2,2344.0,0.55]
[1725963354199,0.88513226,2344.1,2344.0,0.55]
[1725963354396,0.88513226,2344.2,2344.0,0.55]
[1725963354698,0.88513226,2344.1,2344.0,0.55]
[1725963356507,1.32990778,2344.2,2344.0,0.55]
[1725963356657,1.32990778,2344.1,2344.0,0.55]
[1725963357296,0.88897162,2344.1,2344.0,0.55]
[1725963358753,0.88897162,2344.1,2343.9,0.09031781]
[1725963358956,0.88897162,2344.1,2344.0,0.55]
[1725963360966,0.88897162,2344.2,2344.0,0.55]
[1725963361168,0.88897162,2344.3,2344.1,23.14437413]
[1725963361478,2.22402192,2344.7,2344.2,21.14788781]
[1725963361479,0.88897162,2344.7,2344.2,21.14788781]
[1725963361683,0.88897162,2344.8,2344.3,1.59732481]
[1725963361867,1.32990778,2344.9,2344.2,22.44943741]
[1725963361868,0.88897162,2344.7,2344.4,2.95467622]
[1725963362204,0.88897162,2344.7,2344.5,0.55]
[1725963362371,1.32990778,2344.9,2344.5,0.55]
[1725963362372,0.88897162,2344.8,2344.6,0.29546762]
[1725963362715,0.88897162,2344.9,2344.7,0.55]
[1725963363210,0.88897162,2344.8,2344.7,0.55]
[1725963363472,0.88897162,2344.9,2344.7,0.55]
[1725963363749,0.88897162,2345.0,2344.7,0.55]
[1725963364113,0.88897162,2345.0,2344.7,0.63528802]
[1725963364343,0.88897162,2345.0,2344.7,0.55]
[1725963365550,0.88897162,2345.1,2344.8,0.08528808]
[1725963365752,0.88897162,2345.2,2344.9,0.55]
[1725963365906,1.32990778,2345.3,2344.9,0.55]
[1725963365907,0.88897162,2345.3,2344.9,0.55]
[1725963366420,0.88897162,2345.4,2344.9,0.55]
[1725963366821,0.88897162,2345.3,2344.9,0.55]
[1725963367331,0.88897162,2345.4,2345.0,0.08528085]
[1725963367545,2.2249866,2345.7,2345.0,0.08528085]
[1725963367546,0.88897162,2345.7,2345.1,0.55]
[1725963367749,0.88897162,2345.6,2345.2,0.08527029]
[1725963367922,0.88897162,2345.7,2345.3,0.55]
[1725963368967,0.88897162,2345.8,2345.3,0.55]
[1725963369526,4.60345085,2345.9,2345.3,0.55]
[1725963369527,0.88897162,2345.9,2345.3,0.55]
[1725963369844,0.88897162,2345.9,2345.2,20.08]
[1725963369845,3.27354307,2345.8,2345.2,20.08]
[1725963370169,0.88897162,2345.8,2345.2,20.08]
[1725963370370,0.88897162,2345.8,2345.2,0.55]
[1725963370659,1.32990778,2345.9,2345.2,2.008]
[1725963370660,3.88897162,2345.9,2345.2,2.008]
[1725963370917,3.0,2345.9,2345.3,0.55]
[1725963371027,0.88897162,2346.0,2345.3,0.8608]
[1725963371476,3.88897162,2346.1,2345.3,0.8608]
[1725963371637,3.27354307,2346.0,2345.3,0.55]
[1725963371835,3.27354307,2346.0,2345.0,19.53]
[1725963371836,3.88897162,2345.9,2345.0,19.53]
[1725963372021,3.88897162,2345.9,2345.1,0.55]
[1725963372235,3.0,2345.9,2345.2,2.09326833]
[1725963372479,1.32990778,2346.1,2345.3,0.55]
[1725963372480,3.88897162,2346.1,2345.3,0.55]
[1725963372782,0.88897162,2346.1,2345.4,0.2558]
[1725963372947,0.88897162,2346.1,2345.3,0.55]
[1725963372948,3.27354307,2345.9,2345.5,0.55]
[1725963373151,3.27354307,2345.9,2345.3,0.55]
[1725963373152,4.16251469,2345.9,2345.3,0.55]
[1725963373476,0.54924225,2345.8,2345.1,0.55]
[1725963373839,0.88897162,2346.0,2345.1,0.55]
[1725963374075,3.88897162,2346.0,2345.1,0.55]
[1725963374592,3.0,2346.0,2345.1,0.55]
[1725963374771,0.88897162,2346.2,2345.1,0.55]
[1725963374957,4.61553093,2346.2,2345.2,2.33535431]
[1725963375161,4.61553093,2346.2,2345.3,0.55]
[1725963375364,4.61553093,2346.2,2345.3,20.08]
[1725963376374,3.27354307,2346.1,2345.3,20.08]
[1725963376551,3.0,2346.0,2345.3,20.08]
[1725963379270,3.0,2346.0,2345.4,0.0852685]
[1725963379571,3.0,2346.2,2345.5,0.55]
[1725963379775,7.45345085,2346.5,2345.5,0.55]
[1725963379776,3.73897162,2346.5,2345.6,2.10178161]
[1725963379976,2.85,2346.5,2345.7,0.55]
[1725963380191,2.85,2346.5,2345.8,2.21817816]
[1725963380366,2.85,2346.5,2345.9,0.55]
[1725963381184,3.0,2346.4,2345.9,0.55]
[1725963381367,3.27354307,2346.3,2345.9,0.55]
[1725963381569,3.27354307,2346.1,2345.6,19.53]
[1725963381776,3.27354307,2345.9,2345.6,19.53]
[1725963381973,3.27354307,2345.9,2345.2,7.48]
[1725963382201,3.27248509,2345.9,2345.3,1.979]
[1725963382565,3.0,2346.0,2345.3,1.979]
[1725963383298,3.0,2346.0,2345.4,0.55]
[1725963383495,3.0,2346.2,2345.5,0.0852585]
[1725963383796,3.0,2346.4,2345.6,0.55]
[1725963384390,3.0,2346.4,2345.7,0.08525452]
[1725963384590,3.0,2346.4,2345.8,0.55]
[1725963385290,2.85,2346.5,2345.8,0.63525165]
[1725963386004,6.12354307,2346.5,2345.8,0.55]
[1725963386155,0.61235431,2346.4,2345.8,0.55]
[1725963386590,2.85,2346.5,2345.8,0.55]
[1725963387392,2.85,2346.5,2345.6,0.55]
[1725963387600,2.85,2346.5,2345.7,0.0852488]
[1725963387805,2.85,2346.5,2345.8,0.55]
[1725963388875,2.85,2346.5,2345.9,0.08524889]
[1725963389069,2.85,2346.5,2346.0,0.55]
[1725963396496,2.85,2346.5,2345.7,3.27354307]
[1725963396497,2.85,2346.5,2345.8,0.63524571]
[1725963396791,2.85,2346.5,2345.8,2.92412455]
[1725963397314,5.04671371,2347.1,2345.8,2.92412455]
[1725963397315,0.88897162,2347.2,2346.1,3.27354307]
[1725963397519,0.88897162,2347.2,2345.8,0.55]
[1725963397520,3.27354307,2346.9,2345.8,0.55]
[1725963398014,3.27354307,2346.7,2345.6,0.55]
[1725963398221,4.16251469,2346.9,2345.6,0.55]
[1725963398387,0.54924225,2346.8,2345.7,3.7411429]
[1725963398723,0.54924225,2346.8,2345.8,0.55]
[1725963398919,4.43821387,2346.8,2345.8,0.55]
[1725963399125,3.54924225,2346.8,2345.8,0.55]
[1725963399415,0.98227853,2346.7,2345.9,0.38235431]
[1725963399714,0.98227853,2346.7,2346.0,0.55]
[1725963399919,3.0,2346.8,2346.1,0.08524407]
[1725963400114,0.88897162,2347.0,2346.2,0.55]
[1725963400325,3.27354307,2346.9,2346.2,0.55]
[1725963400493,3.0,2346.8,2346.2,0.55]
[1725963401481,1.32990778,2347.0,2346.2,0.55]
[1725963401482,3.88897162,2347.0,2346.2,0.55]
[1725963401924,3.88897162,2347.0,2346.3,0.08522864]
[1725963402135,3.88897162,2347.0,2346.4,0.55]
[1725963402136,0.88897162,2347.0,2346.4,0.55]
[1725963405527,0.88897162,2347.0,2346.2,0.6352315]
[1725963405700,0.88897162,2347.0,2346.3,2.84975465]
[1725963405912,0.88897162,2347.0,2346.4,0.55]
[1725963406215,0.88897162,2346.9,2346.4,0.55]
[1725963406396,3.88897162,2347.0,2346.4,0.55]
[1725963406607,3.88897162,2347.0,2346.5,0.33997547]
[1725963406794,0.88897162,2347.0,2346.6,0.55]
[1725963408185,3.88897162,2347.1,2346.6,0.55]
[1725963408490,0.88897162,2347.1,2346.6,0.55]
[1725963408828,0.88897162,2347.0,2346.6,0.55]
[1725963409025,0.88897162,2347.1,2346.6,0.55]
[1725963409326,0.88897162,2347.2,2346.6,0.63522455]
[1725963409546,0.88897162,2347.4,2346.7,0.42487431]
[1725963409836,1.32990778,2347.5,2346.7,0.42487431]
[1725963409837,0.88897162,2347.5,2346.8,0.63520967]
[1725963410137,0.88897162,2347.5,2346.9,0.4333627]
[1725963410348,4.16251469,2347.5,2347.0,0.55]
[1725963410640,0.88897162,2347.2,2347.0,0.55]
[1725963410943,4.60345085,2347.3,2346.8,19.53]
[1725963410944,0.88897162,2347.3,2346.9,0.55]
[1725963411145,0.88897162,2347.3,2346.9,2.503]
[1725963414552,0.88897162,2347.3,2346.9,0.55]
[1725963414695,0.88897162,2347.3,2346.8,0.55]
[1725963414897,3.88897162,2347.4,2346.8,0.55]
[1725963415099,0.88897162,2347.4,2346.8,0.55]
[1725963415743,0.88897162,2347.3,2346.8,0.55]
[1725963418178,0.88897162,2347.4,2346.8,0.55]
[1725963419798,3.27354307,2347.3,2346.8,2.5665214]
[1725963420109,0.88897162,2347.3,2346.8,2.5665214]
[1725963420480,4.16251469,2347.1,2346.5,7.81997547]
[1725963420687,0.88897162,2347.0,2346.5,7.48]
[1725963420996,0.88897162,2347.0,2346.2,31.84]
[1725963420997,0.88897162,2346.9,2346.2,19.53]
[1725963421328,0.88897162,2346.9,2346.3,3.184]
[1725963422331,0.88897162,2346.9,2346.4,0.55]
[1725963423081,0.88897162,2347.0,2346.4,0.55]
[1725963423284,0.88897162,2347.0,2346.5,0.3734]
[1725963423485,0.88897162,2347.0,2346.4,0.55]
[1725963423486,0.88897162,2346.9,2346.6,0.55]
[1725963423715,0.88897162,2346.8,2346.4,0.55]
[1725963423917,0.88897162,2346.8,2346.4,2.8764]
[1725963425152,1.32990778,2346.9,2346.4,2.8764]
[1725963425153,0.88897162,2346.9,2346.4,2.8764]
[1725963428391,0.88897162,2346.8,2346.4,2.8764]
[1725963428523,0.88897162,2346.9,2346.5,0.29616313]
[1725963428730,0.88897162,2346.8,2346.6,0.55]
[1725963428927,0.88897162,2346.9,2346.6,0.86725631]
[1725963429431,0.88897162,2346.8,2346.6,0.86725631]
[1725963431208,0.88897162,2346.9,2346.6,0.86725631]
[1725963432475,0.88897162,2346.9,2346.7,2.04824873]
[1725963432793,0.88897162,2346.9,2346.8,0.55]
[1725963434381,1.32990778,2346.9,2346.8,0.55]
[1725963434705,1.33284072,2346.9,2346.6,0.55]
[1725963434959,0.88855707,2346.7,2346.6,0.55]
[1725963436624,0.88855707,2346.7,2346.6,2.558]
[1725963436944,0.88855707,2346.9,2346.6,2.558]
[1725963437102,0.88855707,2346.9,2346.6,2.6432208]
[1725963437638,0.88855707,2346.8,2346.6,2.6432208]
[1725963437942,0.88855707,2346.8,2346.7,2.21732208]
[1725963438236,1.3328356,2346.9,2346.7,2.76732208]
[1725963438237,0.88855707,2346.9,2346.7,2.76732208]
[1725963438440,0.88855707,2346.8,2346.7,0.55]
[1725963438643,0.88855707,2346.8,2346.5,0.55]
[1725963438841,0.88855707,2346.9,2346.6,0.08522105]
[1725963439139,0.88855707,2346.9,2346.7,0.55]
[1725963439350,0.88855707,2346.8,2346.7,0.55]
[1725963439552,0.88855707,2346.8,2346.5,0.63522116]
[1725963439757,0.88855707,2346.8,2346.5,2.73188764]
[1725963442574,0.88855707,2346.7,2346.5,2.73188764]
[1725963444229,0.88855707,2346.7,2346.5,22.26188764]
[1725963444476,0.88855707,2346.7,2346.5,20.08]
[1725963444639,0.88855707,2346.8,2346.5,20.08]
[1725963446666,0.88855707,2346.7,2346.5,20.08]
[1725963446871,0.88855707,2346.7,2346.6,2.11469974]
[1725963447098,0.88855707,2346.7,2346.6,0.55]
[1725963447412,1.3328356,2346.7,2346.6,0.55]
[1725963447717,1.336455,2346.7,2346.6,0.55]
[1725963447889,1.33652818,2346.7,2346.6,0.55]
[1725963448213,1.26602409,2346.7,2346.6,0.55]
[1725963448382,3.03919473,2346.7,2346.6,0.55]
[1725963448585,1.26602409,2346.7,2346.6,0.55]
[1725963449087,1.77317064,2346.7,2346.6,0.55]
[1725963449611,1.26602409,2346.7,2346.6,0.55]
[1725963449796,1.33656288,2346.7,2346.6,0.55]
[1725963450174,1.26610646,2346.7,2346.6,0.55]
[1725963450371,1.77317064,2346.7,2346.4,0.55]
[1725963450616,0.89106916,2346.5,2346.3,3.251]
[1725963450822,0.89106916,2346.5,2346.3,2.701]
[1725963451029,0.89106916,2346.4,2345.8,7.48]
[1725963451324,0.89106916,2346.4,2345.7,20.42108359]
[1725963451325,0.89090051,2346.1,2345.7,19.53]
[1725963451621,0.89090051,2346.1,2345.8,1.06733814]
[1725963452320,0.89090051,2346.0,2345.7,22.231]
[1725963453005,0.89090051,2345.9,2345.7,19.53]
[1725963453193,1.33660375,2345.8,2345.2,27.01]
[1725963453391,1.33660375,2345.8,2344.9,12.31]
[1725963453392,0.89022926,2345.6,2345.3,2.701]
[1725963453573,0.89022926,2345.6,2345.1,1.06761285]
[1725963453832,0.89022926,2345.7,2345.0,19.53]
[1725963453981,0.89022926,2345.7,2345.1,3.62996658]
[1725963454303,1.33660375,2345.9,2345.1,3.62996658]
[1725963454304,0.89022926,2345.8,2345.1,2.701]
[1725963454477,0.89022926,2345.8,2345.2,2.2231]
[1725963454682,0.89022926,2345.7,2345.2,2.2231]
[1725963455121,0.89022926,2345.8,2345.2,2.2231]
[1725963455290,0.89022926,2345.8,2345.3,1.04241]
[1725963457110,0.89022926,2345.9,2345.3,1.04241]
[1725963457481,0.89022926,2345.8,2345.3,1.04241]
[1725963458323,4.33660375,2346.0,2345.3,1.04241]
[1725963458324,0.89022926,2345.9,2345.4,0.326551]
[1725963458526,0.89022926,2345.8,2345.5,0.55]
[1725963458727,0.89022926,2345.9,2345.3,0.55]
[1725963459049,0.89022926,2345.9,2345.4,0.27731]
[1725963459244,0.89022926,2345.9,2345.5,0.55]
[1725963459930,0.89022926,2345.9,2345.3,0.55]
[1725963460226,4.33660375,2346.1,2345.3,0.55]
[1725963460227,0.89022926,2346.0,2345.3,0.55]
[1725963460937,0.89022926,2346.1,2345.3,0.63526847]
[1725963461245,0.89022926,2346.2,2345.4,0.25967953]
[1725963461448,0.89022926,2346.2,2345.5,0.63525429]
[1725963461603,0.89022926,2346.1,2345.5,0.63525429]
[1725963462299,0.89022926,2346.2,2345.5,0.63525429]
[1725963462699,0.89022926,2346.1,2345.5,0.63525429]
[1725963463243,0.89022926,2346.3,2345.5,0.63525429]
[1725963463442,0.89022926,2346.4,2345.6,19.53]
[1725963463752,1.33660375,2346.5,2345.7,2.97912232]
[1725963463753,0.89022926,2346.5,2345.7,2.97912232]
[1725963463910,0.89022926,2346.5,2345.8,0.08524155]
[1725963464241,0.89022926,2346.5,2345.9,0.55]
[1725963464442,0.89022926,2346.5,2346.0,0.08524015]
[1725963464602,0.89022926,2346.5,2346.1,0.55]
[1725963464944,0.89022926,2346.6,2346.2,0.08524015]
[1725963465095,1.33660375,2346.7,2346.3,0.55]
[1725963465096,0.89022926,2346.7,2346.3,0.55]
[1725963465599,0.89022926,2346.8,2346.3,0.55]
[1725963465799,0.89022926,2346.7,2346.3,0.55]
[1725963466205,0.89022926,2346.8,2346.3,0.55]
[1725963466937,0.89022926,2346.9,2346.4,0.0852311]
[1725963467238,0.89022926,2347.0,2346.5,0.55]
[1725963467607,0.89022926,2346.9,2346.5,0.55]
[1725963467801,0.89022926,2346.9,2346.6,0.08521983]
[1725963468002,0.89022926,2346.9,2346.7,0.55]
[1725963471730,0.89022926,2347.0,2346.7,0.55]
[1725963471951,0.89022926,2346.9,2346.7,0.55]
[1725963472541,4.33660375,2347.1,2346.7,0.55]
[1725963472542,0.89022926,2347.0,2346.7,0.55]
[1725963472971,0.89022926,2346.9,2346.7,0.55]
[1725963473121,0.89022926,2347.0,2346.7,0.55]
[1725963473966,0.89022926,2346.9,2346.7,0.55]
[1725963474128,0.89022926,2347.0,2346.7,0.55]
[1725963474523,0.89022926,2347.1,2346.7,0.55]
[1725963475624,0.89022926,2347.0,2346.7,0.55]
[1725963476064,0.89022926,2347.1,2346.7,0.55]
[1725963476220,0.89022926,2347.0,2346.7,0.55]
[1725963476626,0.89022926,2347.0,2346.5,0.55]
[1725963476850,0.89022926,2347.1,2346.5,0.55]
[1725963477051,0.89022926,2347.1,2346.4,20.08]
[1725963477721,0.89022926,2347.0,2346.4,20.08]
[1725963479078,1.33660375,2347.1,2346.5,0.08522439]
[1725963479079,0.89022926,2347.1,2346.5,0.08522439]
[1725963479225,0.89022926,2347.1,2346.6,0.55]
[1725963479628,0.89022926,2347.0,2346.6,0.55]
[1725963480534,0.89022926,2347.0,2346.5,0.63522441]
[1725963480964,0.89022926,2347.0,2346.5,2.75928228]
[1725963483374,0.89022926,2347.0,2346.5,0.63522441]
[1725963487262,0.89022926,2347.1,2346.5,0.63522441]
[1725963487483,3.89022926,2347.2,2346.5,0.63522441]
[1725963487691,0.89022926,2347.2,2346.6,2.01652244]
[1725963487842,0.89022926,2347.2,2346.7,0.63521411]
[1725963488036,0.89022926,2347.3,2346.7,0.63521411]
[1725963488279,0.89022926,2347.3,2346.8,0.26517366]
[1725963488440,0.89022926,2347.3,2346.9,0.55]
[1725963488846,3.89022926,2347.4,2346.9,0.6352098]
[1725963489041,0.89022926,2347.4,2346.9,2.67824815]
[1725963490281,0.89022926,2347.5,2346.9,2.67824815]
[1725963490786,0.89022926,2347.4,2346.9,2.67824815]
[1725963490986,0.89022926,2347.4,2347.0,2.24734218]
[1725963491189,0.89022926,2347.5,2347.1,0.55]
[1725963491499,0.89022926,2347.4,2347.1,0.55]
[1725963491642,0.89022926,2347.5,2347.2,0.27973422]
[1725963491841,0.89022926,2347.6,2347.3,0.63520603]
[1725963492049,3.89022926,2347.7,2347.3,0.63520603]
[1725963492252,0.89022926,2347.8,2347.3,0.63520603]
[1725963492671,0.89022926,2347.9,2347.3,0.63520603]
[1725963493145,0.89022926,2347.9,2347.3,1.05405436]
[1725963494362,0.89022926,2348.0,2347.3,1.05405436]
[1725963496791,3.89022926,2348.1,2347.3,1.05405436]
[1725963496957,0.89022926,2348.1,2347.3,0.96884833]
[1725963497151,0.89022926,2348.1,2347.3,4.2423914]
[1725963497486,0.89022926,2348.1,2347.4,0.08518336]
[1725963497706,0.89022926,2348.1,2347.5,0.55]
[1725963497989,0.89022926,2348.1,2347.6,0.08518333]
[1725963498294,3.0,2348.1,2347.7,0.55]
[1725963498593,0.89022926,2348.1,2347.7,0.55]
[1725963498752,1.33660375,2348.2,2347.7,2.56651833]
[1725963498753,0.89022926,2348.2,2347.7,2.56651833]
[1725963498979,0.89022926,2348.1,2347.7,2.56651833]
[1725963499318,0.89022926,2348.2,2347.8,2.20965183]
[1725963499503,0.89022926,2348.1,2347.9,0.55]
[1725963499707,0.89022926,2348.2,2347.9,0.55]
[1725963499918,0.89022926,2348.1,2347.9,0.55]
[1725963500220,4.33660375,2348.3,2347.9,0.55]
[1725963500221,0.89022926,2348.2,2347.9,0.55]
[1725963502182,0.89022926,2348.1,2347.9,0.55]
[1725963504332,0.89022926,2348.2,2347.9,0.55]
[1725963504631,0.89022926,2348.3,2347.9,0.55]
[1725963504836,0.89022926,2348.3,2347.7,0.63517338]
[1725963505036,0.89022926,2348.4,2347.8,0.08517339]
[1725963505195,0.89022926,2348.3,2347.9,0.55]
[1725963505795,0.89022926,2348.4,2347.9,0.55]
[1725963506200,4.33660375,2348.5,2347.9,0.55]
[1725963506201,0.89022926,2348.3,2347.9,0.55]
[1725963506399,0.89022926,2348.6,2347.8,0.55]
[1725963506634,1.33660375,2348.7,2347.8,1.10624161]
[1725963506635,0.89022926,2348.7,2347.8,1.10624161]
[1725963506940,0.89022926,2348.7,2347.9,0.43797847]
[1725963507153,0.89022926,2348.7,2348.0,0.55]
[1725963507534,3.89022926,2348.7,2348.0,0.55]
[1725963508267,3.0,2348.7,2348.0,0.55]
[1725963509165,3.89022926,2348.7,2348.0,0.55]
[1725963509540,3.0,2348.7,2348.0,0.55]
[1725963509739,3.0,2348.7,2348.1,0.08516394]
[1725963509928,0.89022926,2348.8,2348.2,0.55]
[1725963510362,3.89022926,2348.9,2348.2,0.55]
[1725963510601,3.89022926,2348.9,2348.3,0.08516393]
[1725963511115,0.89022926,2349.0,2348.4,0.55]
[1725963511403,3.27354307,2349.0,2348.4,0.55]
[1725963511610,0.32735431,2348.9,2348.4,0.55]
[1725963511763,1.21758357,2348.9,2348.4,0.55]
[1725963512672,0.32735431,2348.9,2348.4,0.55]
[1725963512878,3.32735431,2348.9,2348.4,0.55]
[1725963513891,3.0,2348.9,2348.4,0.55]
[1725963514161,3.89022926,2349.1,2348.2,0.55]
[1725963514476,3.89022926,2349.1,2348.3,0.08515983]
[1725963514691,3.89022926,2349.2,2348.4,0.55]
[1725963514892,1.33660375,2349.3,2348.5,0.08514789]
[1725963514893,0.89022926,2349.3,2348.5,0.08514789]
[1725963515098,0.89022926,2349.3,2348.6,0.55]
[1725963515478,4.61014682,2349.5,2348.6,0.55]
[1725963515479,0.89022926,2349.4,2348.6,0.55]
[1725963515674,0.89022926,2349.4,2348.6,20.08]
[1725963515880,0.89022926,2349.4,2348.7,2.0595104]
[1725963516104,0.89022926,2349.3,2348.8,0.55]
[1725963516309,3.89022926,2349.4,2348.8,0.55]
[1725963516609,3.89022926,2349.4,2348.8,2.81895104]
[1725963517168,3.0,2349.4,2348.8,2.81895104]
[1725963517387,3.89022926,2349.4,2348.8,2.81895104]
[1725963517592,3.0,2349.4,2348.8,2.81895104]
[1725963517793,3.89022926,2349.4,2348.8,2.81895104]
[1725963518167,3.0,2349.4,2348.8,2.81895104]
[1725963521375,3.0,2349.4,2348.9,0.2818951]
[1725963521587,3.0,2349.4,2349.0,0.55]
[1725963528203,4.50573203,2349.4,2349.0,0.55]
[1725963528410,1.50573203,2349.4,2349.0,0.55]
[1725963533357,2.39596129,2349.4,2349.0,0.55]
[1725963533553,4.50573203,2349.4,2349.0,0.55]
[1725963533730,1.50573203,2349.4,2349.0,0.55]
[1725963533928,2.39596129,2349.4,2349.0,0.55]
[1725963534130,5.39596129,2349.4,2349.0,0.55]
[1725963535646,1.50573203,2349.2,2348.9,0.55]
[1725963537303,2.39596129,2349.2,2348.9,0.55]
[1725963537500,2.39596129,2349.2,2348.7,0.55]
[1725963537719,2.39596129,2349.2,2348.8,2.008]
[1725963537995,2.39596129,2349.2,2348.9,0.55]
[1725963539771,0.89022926,2349.2,2348.9,0.55]
[1725963540610,2.39596129,2349.2,2348.9,0.55]
[1725963540758,2.39596129,2349.2,2348.7,0.55]
[1725963540962,2.39596129,2349.2,2348.7,2.54599561]
[1725963541160,1.50573203,2348.8,2348.6,19.53]
[1725963541393,2.39596129,2348.8,2348.1,27.01]
[1725963541691,2.39596129,2348.8,2347.6,1.50573203]
[1725963541692,2.39596129,2348.8,2348.2,23.462]
[1725963541889,2.39596129,2348.8,2348.2,19.53]
[1725963543325,2.39596129,2348.8,2348.3,0.55]
[1725963544329,0.89022926,2348.7,2348.3,0.55]
[1725963545136,1.50573203,2348.4,2348.3,0.55]
[1725963546093,2.39596129,2348.6,2348.3,0.55]
[1725963546289,2.39596129,2348.6,2348.3,2.558]
[1725963546595,2.39596129,2348.6,2348.3,0.55]
[1725963548240,0.89022926,2348.5,2348.3,0.55]
[1725963550243,0.89022926,2348.4,2348.3,0.55]
[1725963550533,0.89022926,2348.4,2348.1,0.55]
[1725963550748,0.89022926,2348.4,2348.1,2.01964383]
[1725963551032,0.89022926,2348.4,2348.2,0.55]
[1725963551335,0.89022926,2348.5,2348.2,0.63516411]
[1725963551542,0.89022926,2348.5,2348.3,0.25696438]
[1725963551778,0.89022926,2348.5,2348.4,0.55]
[1725963552442,0.89328243,2348.5,2348.4,0.55]
[1725963552643,0.89328243,2348.5,2348.4,2.59221285]
[1725963552842,0.89328291,2348.5,2348.4,2.59221285]
[1725963553074,1.33660375,2348.5,2348.4,2.59221285]
[1725963553636,3.27890267,2348.6,2348.4,0.55]
[1725963553862,1.77317064,2348.5,2348.4,0.55]
[1725963554177,1.77317064,2348.5,2348.3,0.55]
[1725963554377,1.34016356,2348.4,2348.3,0.55]
[1725963554534,0.89340528,2348.4,2348.3,0.55]
[1725963554860,1.34016356,2348.4,2348.3,0.55]
[1725963555060,1.34016356,2348.5,2348.3,0.55]
[1725963555258,1.34016356,2348.4,2348.3,0.55]
[1725963555479,1.34016356,2348.5,2348.3,2.7533]
[1725963555971,1.77317064,2348.5,2348.3,0.55]
[1725963556175,1.34023551,2348.4,2348.3,0.55]
[1725963556379,1.77317064,2348.5,2348.3,0.55]
[1725963556542,1.3402036,2348.4,2348.3,0.55]
[1725963556885,1.77317064,2348.4,2348.3,0.55]
[1725963557381,1.77317064,2348.5,2348.3,0.55]
[1725963557735,1.77317064,2348.4,2348.3,0.55]
[1725963557970,1.77317064,2348.4,2348.3,2.558]
[1725963557971,1.34007433,2348.4,2348.3,2.558]
[1725963558576,1.34007433,2348.4,2348.3,0.55]
[1725963558762,1.34007433,2348.4,2348.1,0.55]
[1725963558964,0.89333725,2348.3,2348.0,0.55]
[1725963559166,0.89333725,2348.3,2348.1,22.396247]
[1725963559396,0.89333725,2348.4,2348.2,0.55]
[1725963559587,0.89333725,2348.3,2348.2,0.55]
[1725963559785,0.89326636,2348.4,2348.3,2.22797996]
[1725963560096,0.89326636,2348.4,2348.3,2.77797996]
[1725963560581,1.34007433,2348.5,2348.3,2.77797996]
[1725963560780,1.34007433,2348.5,2348.4,0.827798]
[1725963560983,1.77317064,2348.5,2348.4,0.827798]
[1725963562259,1.77317064,2348.5,2348.4,0.55]
[1725963562955,1.77317064,2348.5,2347.8,7.48]
[1725963563160,0.89330367,2348.0,2347.7,19.53]
[1725963563401,2.3990357,2347.9,2347.7,19.53]
[1725963563604,0.89330367,2347.9,2347.7,19.53]
[1725963563787,0.89330367,2347.8,2347.7,19.53]
[1725963564104,0.89330367,2347.8,2347.2,19.53]
[1725963564307,0.89330367,2347.7,2347.3,0.66667624]
[1725963564473,0.89330367,2347.7,2347.2,19.53]
[1725963564676,0.89330367,2347.7,2347.3,1.953]
[1725963565561,0.89330367,2347.7,2347.4,0.55]
[1725963565756,0.89330367,2347.7,2347.4,19.53]
[1725963565997,0.89330367,2347.6,2346.9,19.53]
[1725963566301,0.89330367,2347.7,2347.0,0.66669333]
[1725963566462,0.89330367,2347.7,2347.1,2.01966933]
[1725963567318,0.89330367,2347.7,2347.2,0.55]
[1725963569000,4.15977698,2347.8,2347.2,0.55]
[1725963569917,0.89330367,2347.9,2347.3,0.08519735]
[1725963570128,0.89330367,2348.1,2347.4,0.55]
[1725963570313,0.89330367,2348.1,2347.5,0.08518134]
[1725963570518,0.89330367,2348.1,2347.6,0.55]
[1725963573500,7.15977698,2348.2,2347.6,0.55]
[1725963573706,0.89330367,2348.1,2347.6,0.55]
[1725963576449,0.89330367,2348.1,2347.7,19.53]
[1725963576614,0.89330367,2348.1,2347.8,20.08]
[1725963582212,0.89330367,2348.1,2347.9,19.53]
[1725963582407,0.89330367,2348.1,2348.0,0.55]
[1725963583446,4.60642881,2348.2,2348.0,0.55]
[1725963583647,0.89185096,2348.1,2348.0,0.55]
[1725963584325,1.3399555,2348.1,2348.0,0.55]
[1725963588364,1.3399555,2348.1,2348.0,20.08]
[1725963589467,1.3399555,2348.1,2348.0,0.55]
[1725963589468,2.77304682,2348.1,2348.0,0.55]
[1725963589725,3.21705061,2348.1,2347.9,0.55]
[1725963589921,3.29117652,2348.0,2347.9,0.55]
[1725963591431,3.29135391,2348.0,2347.9,0.55]
[1725963593440,1.50722083,2348.0,2347.9,0.55]
[1725963593641,3.29140869,2348.0,2347.9,0.55]
[1725963594061,3.29140107,2348.0,2347.9,0.55]
[1725963594369,1.50722083,2348.0,2347.9,0.55]
[1725963594571,3.66526543,2348.0,2347.3,19.53]